bitfinex/quotes_ETHUSD_20251018
["timestamp","ask_amount","ask_price","bid_price","bid_amount"]
[1760794317641,1.94841645,3877.8,3877.7,0.002]
[1760794318233,19.70258845,3877.8,3877.7,0.002]
[1760794318621,13.61018345,3877.8,3877.7,0.002]
[1760794318822,6.84662945,3877.8,3877.7,0.002]
[1760794319021,7.07212945,3877.8,3877.7,0.002]
[1760794319724,12.82105345,3877.8,3877.7,0.002]
[1760794320138,13.22559958,3877.8,3877.7,0.002]
[1760794320485,11.33477458,3877.8,3877.7,0.002]
[1760794320784,17.60619858,3877.8,3877.7,0.002]
[1760794320946,20.18498036,3877.8,3877.7,0.002]
[1760794321159,17.60619858,3877.8,3877.7,0.002]
[1760794321361,23.96019858,3877.8,3877.7,0.002]
[1760794321665,26.53898036,3877.8,3877.7,0.002]
[1760794321970,42.14484436,3877.8,3877.7,0.002]
[1760794322476,36.29098358,3877.8,3877.7,0.002]
[1760794322965,36.29147358,3877.8,3877.7,0.002]
[1760794323740,36.70420558,3877.8,3877.7,0.002]
[1760794324372,39.28298736,3877.8,3877.7,0.002]
[1760794324870,40.62198736,3877.8,3877.7,0.002]
[1760794325270,38.04320558,3877.8,3877.7,0.002]
[1760794325491,40.62198736,3877.8,3877.7,0.002]
[1760794325693,38.60519859,3877.8,3877.7,0.002]
[1760794325976,42.51251846,3877.8,3877.7,0.002]
[1760794326371,40.68741346,3877.8,3877.7,0.002]
[1760794326875,42.61598577,3877.8,3877.7,0.002]
[1760794327366,42.97513313,3877.8,3877.7,0.002]
[1760794327919,42.97513313,3877.8,3877.6,0.002]
[1760794327920,34.94064781,3877.4,3877.3,0.002]
[1760794328220,43.78750394,3877.4,3877.3,0.002]
[1760794328356,44.01300394,3877.4,3877.3,0.002]
[1760794328557,22.93554306,3875.7,3873.9,0.1288]
[1760794328758,25.09595841,3875.7,3874.6,0.6679]
[1760794328959,27.64400929,3875.7,3874.6,0.6679]
[1760794329197,28.27940929,3875.7,3874.6,0.6679]
[1760794329879,10.42679735,3875.7,3875.0,0.4322]
[1760794330078,10.42679735,3875.7,3875.2,0.4322]
[1760794330079,6.38935886,3875.7,3875.2,0.4322]
[1760794330281,6.64935786,3875.7,3875.4,0.4322]
[1760794331096,6.64935786,3875.7,3874.6,0.2357]
[1760794331097,21.70758486,3875.7,3874.6,0.2357]
[1760794331263,21.70758486,3875.7,3874.6,0.6679]
[1760794331457,24.6275688,3875.7,3874.6,0.6679]
[1760794331800,31.36015082,3875.7,3874.3,0.6679]
[1760794332102,43.27905982,3875.7,3874.3,0.6679]
[1760794332390,43.27905982,3875.7,3874.1,0.4322]
[1760794332759,42.87426596,3875.7,3874.1,0.4322]
[1760794335290,42.87426596,3875.7,3875.2,0.002]
[1760794336696,42.91925651,3875.7,3875.2,0.002]
[1760794336883,41.97216961,3875.7,3875.2,0.002]
[1760794337099,42.53667449,3875.7,3875.2,0.002]
[1760794337300,42.91925651,3875.7,3875.2,0.002]
[1760794338917,43.02280739,3875.7,3875.2,0.002]
[1760794339122,43.02280739,3875.7,3873.4,1.625]
[1760794339123,5.6958,3873.9,3873.4,1.625]
[1760794339295,0.02564314,3873.8,3873.4,1.625]
[1760794339808,5.6958,3873.7,3873.4,1.625]
[1760794340707,5.74079469,3873.7,3873.4,1.625]
[1760794341101,5.74079469,3873.7,3873.6,0.75615216]
[1760794342126,10.42690069,3873.7,3873.6,0.75615216]
[1760794342714,5.74079469,3873.7,3873.6,0.75615216]
[1760794343429,5.6958,3873.7,3873.6,0.75615216]
[1760794345101,5.6958,3873.7,3873.6,0.32395216]
[1760794345323,5.6958,3873.7,3873.6,0.75615216]
[1760794346636,5.74079713,3873.7,3873.6,0.75615216]
[1760794353176,5.74079713,3873.7,3873.6,0.75815216]
[1760794354162,5.74079713,3873.7,3873.6,3.74054524]
[1760794354426,5.74079713,3873.7,3873.6,1.15896738]
[1760794354770,5.6958,3873.7,3873.6,1.15896738]
[1760794355467,5.6958,3873.7,3873.6,3.74054524]
[1760794357367,5.74079123,3873.7,3873.6,3.74054524]
[1760794357569,0.04499123,3873.7,3873.6,3.74054524]
[1760794357767,0.04499123,3873.7,3873.6,1.18506738]
[1760794358355,0.04499123,3873.7,3873.6,3.76664524]
[1760794360168,0.04499123,3873.7,3873.6,0.72676738]
[1760794360337,0.04499123,3873.7,3873.6,1.18506738]
[1760794360536,0.04499123,3873.7,3873.6,3.76664524]
[1760794360960,0.04499123,3873.7,3873.6,3.30834524]
[1760794361677,0.04499123,3873.7,3873.6,3.76664524]
[1760794365191,0.001,3874.0,3873.9,2.58137793]
[1760794365369,0.001,3874.0,3873.9,3.48720631]
[1760794365568,0.001,3874.0,3873.9,3.94550631]
[1760794366392,0.001,3874.0,3873.9,4.07430631]
[1760794368670,0.001,3874.0,3873.9,4.10012008]
[1760794369187,0.001,3874.0,3873.9,5.80230631]
[1760794372705,0.001,3874.0,3873.9,8.91210631]
[1760794372906,0.001,3874.0,3873.9,9.04090631]
[1760794373403,0.001,3874.0,3873.9,9.14438781]
[1760794374024,0.001,3874.0,3873.9,9.04090631]
[1760794381522,0.001,3874.0,3873.9,8.58260631]
[1760794381686,0.001,3874.0,3873.9,5.34400631]
[1760794383033,0.001,3874.0,3873.9,5.80230631]
[1760794383321,0.001,3874.0,3873.9,5.34400631]
[1760794384594,0.001,3874.0,3873.9,5.79020631]
[1760794384827,0.001,3874.0,3873.9,6.42380631]
[1760794385827,0.001,3874.0,3873.9,17.39710031]
[1760794386003,0.434,3875.7,3875.6,2.58024563]
[1760794386210,0.2284,3875.8,3875.7,2.58017906]
[1760794386422,0.693,3875.8,3875.7,2.58017906]
[1760794387129,6.10047461,3876.9,3875.6,2.58024563]
[1760794387130,0.4646,3876.5,3876.1,2.57991279]
[1760794387301,0.4646,3876.6,3876.4,2.57970594]
[1760794387492,0.4646,3876.6,3876.5,2.57964658]
[1760794388006,0.50957008,3876.6,3876.2,2.57984346]
[1760794388205,0.4646,3876.5,3876.3,2.57976236]
[1760794388408,0.4646,3876.4,3876.3,2.57976236]
[1760794389151,0.4646,3876.4,3875.7,2.58012864]
[1760794389328,0.4646,3876.3,3875.8,2.58010562]
[1760794389508,0.2304,3875.9,3875.8,2.58010562]
[1760794389717,0.695,3875.9,3875.8,2.58010562]
[1760794390043,0.5095735,3875.9,3875.8,2.58010562]
[1760794390349,0.7399735,3875.9,3875.8,2.58010562]
[1760794392857,0.7399735,3875.9,3875.8,2.58011249]
[1760794395380,0.7399735,3875.9,3874.8,2.607]
[1760794395381,0.7399735,3875.9,3875.4,2.5803133]
[1760794395592,0.4646,3875.8,3874.8,0.002]
[1760794395739,0.02564314,3875.7,3874.8,0.002]
[1760794396095,0.1288,3875.4,3875.0,2.58059613]
[1760794396396,0.4646,3875.3,3875.0,2.58059613]
[1760794396552,0.1288,3875.4,3875.0,2.58059613]
[1760794396761,0.4646,3875.3,3875.1,2.58057408]
[1760794396954,0.1288,3875.4,3875.1,2.58057408]
[1760794397164,0.4646,3875.3,3875.1,2.58057408]
[1760794397374,0.4646,3875.2,3875.1,2.58057408]
[1760794397582,0.4646,3875.2,3874.9,2.58070929]
[1760794397876,0.5934,3875.1,3874.8,0.002]
[1760794398052,0.5934,3875.1,3874.8,2.58277748]
[1760794398257,0.5934,3875.1,3874.8,0.002]
[1760794398258,0.4646,3875.0,3874.8,0.002]
[1760794398578,0.4646,3875.0,3874.8,2.58277383]
[1760794398877,0.4646,3874.9,3874.8,2.58277383]
[1760794399081,0.4646,3874.9,3874.8,0.002]
[1760794399946,0.04498139,3875.2,3874.9,2.58070134]
[1760794400144,0.1288,3875.1,3874.8,0.002]
[1760794400375,0.04498139,3875.2,3875.1,2.58057856]
[1760794401345,0.50958139,3875.2,3875.1,2.58057856]
[1760794402053,0.50958139,3875.2,3874.8,0.002]
[1760794402241,0.4646,3875.1,3874.9,2.58071176]
[1760794402440,0.4646,3875.0,3874.9,2.58071176]
[1760794402702,0.4646,3875.0,3874.8,2.58276428]
[1760794402873,0.04498139,3875.2,3874.9,2.58071176]
[1760794403445,0.4646,3875.1,3875.0,2.58063339]
[1760794403649,0.04498139,3875.2,3875.1,2.58057856]
[1760794404350,0.04498139,3875.2,3875.1,2.70207856]
[1760794404582,0.04498139,3875.2,3875.1,2.58057856]
[1760794408798,0.04498139,3875.2,3875.1,3.15772714]
[1760794409101,5.6958,3875.8,3875.7,2.58017906]
[1760794413894,0.27537463,3875.9,3875.8,2.58011249]
[1760794414903,0.04497463,3875.9,3875.8,2.58011249]
[1760794415606,0.04497463,3875.9,3875.7,2.58012324]
[1760794416011,0.49477463,3875.9,3875.8,2.58011249]
[1760794419093,0.49477463,3875.9,3875.4,0.2586]
[1760794419413,0.71387463,3875.9,3875.8,2.58011249]
[1760794419613,0.04497463,3875.9,3875.8,2.58011249]
[1760794423316,0.71387463,3875.9,3875.4,0.2586]
[1760794423497,0.26407463,3875.9,3875.6,2.58020124]
[1760794423698,0.4498,3875.8,3875.7,2.58017906]
[1760794424727,0.26407463,3875.9,3875.8,2.58011249]
[1760794424924,0.04497463,3875.9,3875.8,2.58011249]
[1760794428199,0.04597463,3875.9,3875.8,2.58011249]
[1760794431305,0.04597463,3875.9,3875.8,3.5331468]
[1760794431606,0.001,3875.9,3875.8,5.3899468]
[1760794431818,0.001,3875.9,3875.8,5.49340207]
[1760794432018,0.001,3875.9,3875.8,5.05640207]
[1760794432218,0.001,3875.9,3875.8,3.32840207]
[1760794432619,0.001,3875.9,3875.8,0.74828958]
[1760794432827,0.6699,3875.9,3875.8,0.1288]
[1760794433349,0.6699,3875.9,3875.6,0.10346196]
[1760794433559,0.4498,3875.8,3875.4,2.70911848]
[1760794434048,0.4498,3875.8,3875.5,2.58030414]
[1760794435535,0.001,3875.9,3875.4,0.1288]
[1760794435741,0.001,3875.9,3875.8,2.58011249]
[1760794437216,0.001,3875.9,3875.5,0.31591116]
[1760794437415,0.001,3875.9,3875.4,0.1288]
[1760794437616,0.001,3875.9,3875.8,2.58011249]
[1760794438615,0.044975,3875.7,3875.4,0.1288]
[1760794438930,0.4498,3875.6,3875.5,2.58031221]
[1760794439519,0.4498,3875.6,3875.4,2.70917067]
[1760794439714,0.4498,3875.5,3875.4,2.70917067]
[1760794439948,0.044975,3875.7,3875.5,2.58026111]
[1760794440150,0.044975,3875.7,3875.4,2.7091654]
[1760794440349,0.4498,3875.6,3875.3,2.58039142]
[1760794440550,0.5786,3875.6,3875.4,2.58036261]
[1760794440827,0.4498,3875.5,3874.9,3.2890459]
[1760794441031,0.4498,3875.5,3875.1,2.580556]
[1760794441257,0.4498,3875.5,3875.2,2.58050742]
[1760794441568,0.47544314,3875.4,3874.8,0.002]
[1760794441847,0.1288,3875.1,3874.8,0.002]
[1760794442057,0.1288,3875.3,3875.1,2.58056712]
[1760794442361,0.5786,3875.3,3875.2,2.58051197]
[1760794442519,0.1288,3875.3,3875.2,3.09663339]
[1760794442722,0.1288,3875.6,3875.5,2.58030211]
[1760794443249,0.044975,3875.7,3875.6,2.58024563]
[1760794444126,0.044975,3875.7,3875.6,3.01724563]
[1760794444333,0.001,3875.9,3875.8,2.58011249]
[1760794445224,0.6797,3875.9,3875.5,2.58025154]
[1760794445425,0.4586,3875.8,3875.5,2.58025154]
[1760794446059,0.2211,3875.9,3875.5,2.58025154]
[1760794446060,0.2211,3875.9,3875.5,2.58031221]
[1760794446269,0.2211,3875.9,3875.8,2.58011249]
[1760794446573,0.001,3875.9,3875.8,2.58011249]
[1760794448349,0.001,3875.9,3875.8,3.53854711]
[1760794448543,0.001,3875.9,3875.8,0.51603462]
[1760794448854,0.001,3875.9,3875.8,2.58011249]
[1760794449364,0.001,3875.9,3875.8,3.02251249]
[1760794450130,0.001,3875.9,3875.8,3.15231249]
[1760794450332,0.001,3875.9,3875.8,2.70991249]
[1760794450554,0.001,3875.9,3875.8,3.15231249]
[1760794450759,0.001,3875.9,3875.8,3.73844802]
[1760794453771,0.001,3875.9,3875.8,3.74656822]
[1760794454570,0.001,3875.9,3875.8,3.73844802]
[1760794455058,0.001,3875.9,3875.8,3.74843356]
[1760794455288,0.001,3875.9,3875.8,4.39784914]
[1760794455591,0.001,3875.9,3875.8,4.3914491]
[1760794456638,0.001,3875.9,3875.8,6.10004802]
[1760794458267,0.001,3876.3,3875.8,6.10004802]
[1760794458268,1e-08,3876.3,3876.2,4.94144624]
[1760794458470,1e-08,3876.3,3876.2,8.32338228]
[1760794458675,1e-08,3876.3,3876.2,8.86878382]
[1760794461846,1e-08,3876.3,3876.2,8.99993192]
[1760794463755,1e-08,3876.3,3876.2,23.27762692]
[1760794463984,0.001,3877.8,3877.3,3.21271433]
[1760794464189,0.001,3877.8,3877.3,6.3949054]
[1760794464550,0.4704,3877.8,3877.3,6.3949054]
[1760794464756,0.4704,3877.8,3877.3,6.6228054]
[1760794466356,0.001,3877.8,3877.3,7.0652054]
[1760794466589,0.001,3877.8,3877.3,8.7932054]
[1760794468288,0.001,3877.8,3877.3,11.7524224]
[1760794468484,0.001,3877.8,3877.3,11.4582664]
[1760794469604,0.001,3877.8,3877.3,8.7932054]
[1760794471620,0.001,3877.8,3877.3,8.74827375]
[1760794472723,0.001,3877.8,3877.3,17.73523475]
[1760794472877,0.001,3877.8,3877.3,20.45623475]
[1760794473776,0.001,3877.8,3877.3,18.11093075]
[1760794473976,0.001,3877.8,3877.3,18.23973075]
[1760794474607,0.001,3877.8,3877.3,11.59807375]
[1760794474982,0.001,3877.8,3877.3,13.69796275]
[1760794476001,0.001,3877.8,3877.3,11.15567375]
[1760794476689,0.001,3877.8,3877.3,5.83167375]
[1760794476896,0.448,3877.7,3877.3,8.43367375]
[1760794477510,0.449,3877.4,3877.3,5.19807375]
[1760794477686,0.449,3877.4,3877.3,7.22088268]
[1760794478087,0.449,3877.4,3877.3,7.85448268]
[1760794478319,0.449,3877.4,3877.3,2.89088268]
[1760794479816,0.001,3877.4,3877.3,2.89088268]
[1760794480132,0.001,3877.4,3877.3,6.13649613]
[1760794480286,0.001,3877.4,3877.3,6.99805193]
[1760794480716,0.449,3877.4,3877.3,6.99805193]
[1760794481221,0.001,3877.4,3877.3,6.99805193]
[1760794483016,0.449,3877.4,3877.3,6.99805193]
[1760794484195,0.001,3877.4,3877.3,6.99805193]
[1760794484413,0.001,3877.4,3877.3,8.72605193]
[1760794486800,0.001,3877.4,3877.3,9.18545193]
[1760794487801,0.001,3877.4,3877.3,17.24970093]
[1760794488119,0.001,3877.4,3877.3,8.72605193]
[1760794488325,0.001,3877.4,3877.3,9.18545193]
[1760794490417,0.001,3877.4,3877.3,11.90645193]
[1760794491340,0.001,3877.4,3877.3,22.06151593]
[1760794492741,0.001,3877.4,3877.3,17.33443393]
[1760794493043,0.001,3877.4,3877.3,11.44705193]
[1760794493445,0.001,3877.4,3877.3,6.12405193]
[1760794493624,0.001,3877.4,3877.3,8.72605193]
[1760794494621,0.001,3877.4,3877.3,6.12405193]
[1760794494826,0.449,3877.4,3877.3,8.72605193]
[1760794495043,0.449,3877.4,3877.3,6.12405193]
[1760794495249,0.449,3877.4,3877.3,8.09245193]
[1760794495943,0.449,3877.4,3877.3,8.72605193]
[1760794496148,0.449,3877.4,3877.3,4.61888268]
[1760794496457,0.449,3877.4,3877.3,2.89088268]
[1760794497021,0.449,3877.4,3877.3,0.2279]
[1760794497322,0.449,3877.4,3877.3,2.80701433]
[1760794497564,0.449,3877.4,3877.3,2.93781433]
[1760794498669,0.449,3877.4,3877.3,2.80901433]
[1760794498868,0.449,3877.4,3877.3,2.93781433]
[1760794505207,0.449,3877.4,3877.3,0.3587]
[1760794505556,0.49394559,3877.4,3877.3,2.93781433]
[1760794506373,0.49394559,3877.4,3877.3,0.3587]
[1760794507091,0.49394559,3877.4,3877.3,0.2299]
[1760794507259,0.449,3877.4,3877.3,0.2299]
[1760794508262,7.274321,3877.4,3877.3,0.002]
[1760794508503,6.91243641,3877.4,3877.3,0.002]
[1760794508710,7.31704662,3877.4,3877.3,0.002]
[1760794508874,7.95064662,3877.4,3877.3,0.002]
[1760794509375,25.04842262,3877.4,3877.3,0.002]
[1760794509797,24.70204862,3877.4,3877.3,0.002]
[1760794510093,16.23831091,3877.4,3877.3,0.002]
[1760794510406,8.43656091,3877.4,3877.3,0.002]
[1760794510562,8.11058691,3877.4,3877.3,0.002]
[1760794510762,6.42471791,3877.4,3877.3,0.002]
[1760794511169,3.35656791,3877.4,3877.3,0.002]
[1760794511375,17.7284855,3877.4,3877.3,0.002]
[1760794511598,15.5836845,3877.4,3877.3,0.002]
[1760794512180,15.17907429,3877.4,3877.3,0.002]
[1760794512519,18.53862629,3877.4,3877.3,0.002]
[1760794513017,8.57475929,3877.4,3877.3,0.002]
[1760794513214,6.61742422,3877.4,3877.3,0.002]
[1760794513518,12.31322422,3877.4,3877.3,0.002]
[1760794514218,12.94682422,3877.4,3877.3,0.002]
[1760794514384,27.34382522,3877.4,3877.3,0.002]
[1760794514713,12.35031922,3877.4,3877.3,0.002]
[1760794515288,30.27819622,3877.4,3877.3,0.002]
[1760794515817,26.68119622,3877.4,3877.3,0.002]
[1760794516123,21.14398722,3877.4,3877.3,0.002]
[1760794516281,20.23759622,3877.4,3877.3,0.002]
[1760794516478,17.23311022,3877.4,3877.3,0.002]
[1760794516720,15.56808822,3877.4,3877.3,0.002]
[1760794517325,22.19619422,3877.4,3877.3,0.002]
[1760794518436,24.27236322,3877.4,3877.3,0.002]
[1760794519023,23.48265522,3877.4,3877.3,0.002]
[1760794519391,25.88995399,3877.4,3877.3,0.002]
[1760794520235,22.65615199,3877.4,3877.3,0.002]
[1760794520393,27.01985699,3877.4,3877.3,0.002]
[1760794520789,25.93825699,3877.4,3877.3,0.002]
[1760794520996,7.87438006,3877.4,3877.3,0.002]
[1760794521521,8.26191877,3877.4,3877.3,0.002]
[1760794522828,23.443721,3877.4,3877.3,0.002]
[1760794523001,21.647977,3877.4,3877.3,0.002]
[1760794523326,22.281577,3877.4,3877.3,0.002]
[1760794523747,29.117627,3877.4,3877.3,0.002]
[1760794524036,29.16258834,3877.4,3877.3,0.002]
[1760794524198,27.43554434,3877.4,3877.3,0.002]
[1760794524807,27.50426234,3877.4,3877.3,0.002]
[1760794525329,17.989359,3877.4,3877.3,0.002]
[1760794525520,19.82227539,3877.4,3877.3,0.002]
[1760794525717,10.32381639,3877.4,3877.3,0.002]
[1760794525909,10.665494,3877.4,3877.3,0.002]
[1760794526112,11.07010456,3877.4,3877.3,0.002]
[1760794526833,28.42310956,3877.4,3877.3,0.002]
[1760794527002,24.41352456,3877.4,3877.3,0.002]
[1760794527601,24.10733756,3877.4,3877.3,0.002]
[1760794528114,23.50866256,3877.4,3877.3,0.002]
[1760794528329,23.5536222,3877.4,3877.3,0.002]
[1760794528519,18.7690212,3877.4,3877.3,0.002]
[1760794528832,7.8743702,3877.4,3877.3,0.002]
[1760794530312,15.0855262,3877.4,3877.3,0.002]
[1760794530529,12.69320782,3877.4,3877.3,0.002]
[1760794530716,9.38292282,3877.4,3877.3,0.002]
[1760794531337,31.46604382,3877.4,3877.3,0.002]
[1760794531500,32.09964382,3877.4,3877.3,0.002]
[1760794531700,26.38018182,3877.4,3877.3,0.002]
[1760794532028,21.28153782,3877.4,3877.3,0.002]
[1760794532410,26.50132082,3877.4,3877.3,0.002]
[1760794533420,33.81063682,3877.4,3877.3,0.002]
[1760794533824,30.77633882,3877.4,3877.3,0.002]
[1760794534018,28.76828582,3877.4,3877.3,0.002]
[1760794534413,34.45995682,3877.4,3877.3,0.002]
[1760794534614,15.901433,3877.1,3876.9,0.002]
[1760794534809,17.42471637,3877.0,3876.9,0.002]
[1760794535025,17.39907323,3877.0,3876.9,0.002]
[1760794535225,17.87007323,3877.0,3876.9,0.002]
[1760794535535,19.41347789,3877.0,3876.9,0.002]
[1760794535913,18.24043789,3877.0,3876.9,0.002]
[1760794536321,9.64380189,3877.0,3876.9,0.002]
[1760794536529,27.83730689,3877.0,3876.9,0.002]
[1760794537519,31.44068689,3877.0,3876.9,0.002]
[1760794537718,12.57246289,3877.0,3876.9,0.002]
[1760794537954,12.16782318,3877.0,3876.9,0.002]
[1760794538237,8.13456218,3877.0,3876.9,0.002]
[1760794539916,8.53917536,3877.0,3876.9,0.002]
[1760794541517,8.53917536,3877.0,3876.9,0.4629]
[1760794541733,7.87137513,3877.0,3876.9,0.4629]
[1760794541937,7.82641318,3877.0,3876.9,0.4629]
[1760794542930,7.4218,3877.0,3876.9,0.4629]
[1760794544339,7.46676051,3877.0,3876.9,0.4629]
[1760794545661,7.4218,3877.0,3876.9,0.4629]
[1760794545855,7.46676019,3877.0,3876.9,0.4629]
[1760794546057,7.4218,3877.0,3876.9,0.4629]
[1760794547566,7.4218,3877.0,3876.9,0.002]
[1760794548259,7.82640529,3877.0,3876.9,0.002]
[1760794548662,7.87136627,3877.0,3876.9,0.002]
[1760794549026,7.46676098,3877.0,3876.9,0.002]
[1760794552258,7.87136302,3877.0,3876.9,0.002]
[1760794553971,8.34236302,3877.0,3876.9,0.002]
[1760794554262,9.17659932,3877.0,3876.9,0.002]
[1760794554731,17.02828532,3877.0,3876.9,0.002]
[1760794554934,16.62368328,3877.0,3876.9,0.002]
[1760794555364,16.5787223,3877.0,3876.9,0.002]
[1760794555866,17.4177453,3877.0,3876.9,0.002]
[1760794556049,16.9377003,3877.0,3876.9,0.002]
[1760794556737,19.2228473,3877.0,3876.9,0.002]
[1760794556937,12.2216443,3877.0,3876.9,0.002]
[1760794557373,8.7270363,3877.0,3876.9,0.002]
[1760794557945,8.7270363,3877.0,3876.1,1.0397]
[1760794557946,1.728,3876.9,3876.1,0.53783765]
[1760794558151,0.02564314,3876.8,3876.1,0.53783765]
[1760794558357,0.07060608,3876.8,3876.1,0.53783765]
[1760794559155,0.07060608,3876.8,3876.2,0.4378]
[1760794559960,0.04496294,3876.8,3876.2,0.4378]
[1760794560663,0.02564314,3876.7,3876.1,0.53783765]
[1760794562479,0.02564314,3876.7,3876.1,0.97563765]
[1760794562851,0.471,3876.6,3875.5,0.4378]
[1760794563051,1.728,3876.3,3875.5,0.4378]
[1760794563252,0.02564314,3876.2,3875.5,1.21383098]
[1760794563463,0.02564314,3876.2,3875.5,0.4378]
[1760794563666,0.02564314,3876.2,3876.1,0.002]
[1760794563853,34.627287,3876.2,3876.1,0.002]
[1760794564063,39.49747788,3876.2,3876.1,0.002]
[1760794564266,43.45919088,3876.2,3876.1,0.002]
[1760794564876,43.50416758,3876.2,3876.1,0.002]
[1760794565080,43.81598991,3876.2,3876.1,0.002]
[1760794565280,44.22079647,3876.2,3876.1,0.002]
[1760794565860,43.90897414,3876.2,3876.1,0.002]
[1760794566478,44.22079647,3876.2,3876.1,0.002]
[1760794567156,43.81598991,3876.2,3876.1,0.002]
[1760794568187,13.81598991,3876.2,3876.1,0.002]
[1760794568387,43.81598991,3876.2,3876.1,0.002]
[1760794568758,38.08520635,3876.2,3876.1,0.002]
[1760794569688,37.83083128,3876.2,3876.1,0.002]
[1760794574279,36.88540895,3876.2,3876.1,0.002]
[1760794574478,37.51900895,3876.2,3876.1,0.002]
[1760794574794,36.48056758,3876.2,3876.1,0.002]
[1760794575171,37.11416758,3876.2,3876.1,0.002]
[1760794576296,36.3033627,3876.2,3876.1,0.002]
[1760794576671,16.38365717,3876.2,3876.1,0.002]
[1760794576996,17.43608047,3876.2,3876.1,0.002]
[1760794577376,34.08333547,3876.2,3876.1,0.002]
[1760794577708,10.57542647,3876.2,3876.1,0.0789]
[1760794578205,24.20841206,3876.8,3876.1,0.5167]
[1760794578506,21.899818,3876.7,3876.2,0.4378]
[1760794578718,0.02564314,3876.6,3876.2,0.4378]
[1760794578870,0.02564314,3876.6,3876.3,0.4378]
[1760794578871,1.728,3876.4,3876.3,0.4378]
[1760794579071,30.0,3877.1,3876.3,0.4378]
[1760794579276,9.40470962,3876.4,3876.3,0.4378]
[1760794579611,9.40470962,3876.4,3876.1,0.0789]
[1760794579612,28.26733,3876.2,3876.1,0.002]
[1760794579913,31.18698112,3876.2,3876.1,0.002]
[1760794580115,31.96260345,3876.2,3876.1,0.002]
[1760794580582,36.46165591,3876.2,3876.1,0.002]
[1760794583027,35.82805591,3876.2,3876.1,0.002]
[1760794583318,36.46165591,3876.2,3876.1,0.002]
[1760794584606,36.56518482,3876.2,3876.1,0.002]
[1760794587118,36.6101754,3876.2,3876.1,0.002]
[1760794588986,35.83455307,3876.2,3876.1,0.002]
[1760794589386,36.29835307,3876.2,3876.1,0.002]
[1760794590508,35.09742416,3876.2,3876.1,0.002]
[1760794591204,35.73102416,3876.2,3876.1,0.002]
[1760794592396,32.17777304,3876.2,3876.1,0.0789]
[1760794592934,20.42077904,3876.2,3876.1,0.5167]
[1760794593136,11.16580004,3876.2,3876.1,0.5167]
[1760794593317,8.65688804,3876.2,3876.1,0.5167]
[1760794593501,10.15355104,3876.2,3876.1,0.5167]
[1760794593706,7.42329004,3876.2,3876.1,0.5167]
[1760794593917,6.10987546,3876.2,3876.1,0.5167]
[1760794594320,7.83787546,3876.2,3876.1,0.5167]
[1760794594521,10.37669746,3876.2,3876.1,0.5167]
[1760794595601,16.64474346,3876.2,3876.1,0.5167]
[1760794595808,13.772322,3876.2,3876.1,0.5167]
[1760794596753,12.021849,3876.2,3876.1,0.5167]
[1760794597257,7.26914298,3876.2,3876.1,0.5167]
[1760794597433,4.91245713,3876.2,3876.1,0.5167]
[1760794597613,5.80288513,3876.2,3876.1,0.5167]
[1760794597814,4.27885713,3876.2,3876.1,0.5167]
[1760794598210,10.66885713,3876.2,3876.1,0.5167]
[1760794598416,12.46885713,3876.2,3876.1,0.5167]
[1760794598615,12.25685713,3876.2,3876.1,0.5167]
[1760794598979,11.13226513,3876.2,3876.1,0.5167]
[1760794599255,8.56770113,3876.2,3876.1,0.5167]
[1760794599422,8.16297698,3876.2,3876.1,0.5167]
[1760794601422,1.77297698,3876.2,3876.1,0.5167]
[1760794601629,0.04497698,3876.2,3876.1,0.5167]
[1760794602173,0.04497698,3876.2,3876.1,3.09661279]
[1760794602370,0.04497698,3876.2,3876.1,3.67715595]
[1760794603659,0.04497698,3876.2,3876.1,1.09724316]
[1760794603826,0.04497698,3876.2,3876.1,0.5167]
[1760794604154,0.1298,3876.5,3876.1,0.5167]
[1760794604547,0.1298,3876.5,3876.1,2.65880643]
[1760794604748,0.1298,3876.5,3876.2,0.4378]
[1760794606949,0.17476687,3876.5,3876.2,0.4378]
[1760794607443,0.17476687,3876.5,3876.3,0.30965974]
[1760794608145,0.17476687,3876.5,3876.4,0.4378]
[1760794609372,0.04596687,3876.5,3876.1,0.0789]
[1760794609554,0.02564314,3876.4,3876.1,0.5167]
[1760794609732,0.02564314,3876.4,3876.1,0.0789]
[1760794610066,0.02564314,3876.4,3876.2,0.4378]
[1760794610562,0.04596687,3876.5,3876.1,0.0789]
[1760794610767,0.02564314,3876.4,3876.1,0.0789]
[1760794611367,0.02564314,3876.4,3876.1,0.5167]
[1760794611665,0.04596687,3876.5,3876.1,0.5167]
[1760794611872,0.04596687,3876.5,3876.2,0.4378]
[1760794612032,0.02564314,3876.4,3876.2,0.4378]
[1760794612631,0.04596687,3876.5,3876.3,0.4378]
[1760794614159,0.04596687,3876.5,3876.1,0.0789]
[1760794614354,0.04596687,3876.5,3876.2,0.4378]
[1760794614554,0.04596687,3876.5,3876.3,0.4378]
[1760794614991,0.04596687,3876.5,3876.2,0.30967138]
[1760794615154,0.04596687,3876.5,3876.1,0.0789]
[1760794615358,0.04596687,3876.5,3876.1,0.5167]
[1760794615786,0.04596687,3876.5,3876.1,0.0789]
[1760794615978,0.04596687,3876.5,3876.1,0.5167]
[1760794616180,0.04596687,3876.5,3876.1,0.002]
[1760794616591,0.48526687,3876.5,3876.1,0.002]
[1760794616792,0.02564314,3876.4,3876.1,0.002]
[1760794617587,0.02564314,3876.4,3876.1,0.0789]
[1760794617769,0.04596687,3876.5,3876.1,0.0789]
[1760794618480,0.02564314,3876.4,3876.1,0.0789]
[1760794619178,0.02564314,3876.4,3876.1,0.002]
[1760794619512,6.39,3876.3,3876.1,0.002]
[1760794619782,18.01318114,3876.2,3876.1,0.002]
[1760794619981,17.987538,3876.2,3876.1,0.002]
[1760794620182,16.90254,3876.2,3876.1,0.002]